[Event "Slovakia Open Piestany-A 2022"]
[Site "Piestany"]
[Date "2022.07.17"]
[Round "8.19"]
[White "Bochnicka, Vladimir"]
[Black "Hrbek, Stepan"]
[Result "0-1"]
[ECO "A25"]
[WhiteElo "2295"]
[BlackElo "2272"]
[Annotator "ChessBase"]
[PlyCount "48"]
[EventDate "2022.07.12"]
[EventType "swiss"]
[EventCountry "SVK"]
[SourceTitle "playchess.com"]
[Source "ChessBase"]
[SourceQuality "1"]
[TimeControl "40/5400+30:1800+30"]

1. c4 {[%emt 0:00:03]} e5 {[%emt 0:00:47]} 2. Nc3 {[%emt 0:00:07]} Bb4 {[%emt 0:00:10]} 3. e4 {[%emt 0:00:31]} Nf6 {[%emt 0:03:12]} 4. g3 {[%emt 0:00:19]} Nc6 {[%emt 0:02:32]} 5. Bg2 {[%emt 0:03:23]} d6 {[%emt 0:00:21]} 6. Nge2 {[%emt 0:00:28]} Bc5 {[%emt 0:00:13]} 7. O-O {[%emt 0:01:06]} h5 {[%emt 0:00:23]} 8. d3 {[%emt 0:12:45]} h4 {[%emt 0:03:30]} 9. Bg5 {[%emt 0:03:34]} Bg4 {[%emt 0:04:33]} 10. Qd2 {[%emt 0:06:22]} hxg3 {[%emt 0:02:17]} 11. hxg3 {[%emt 0:00:14]} Qd7 {[%emt 0:04:31]} 12. Bxf6 {[%emt 0:03:08]} gxf6 {[%emt 0:00:44]} 13. Nd5 {[%emt 0:00:41]} O-O-O {[%emt 0:00:19]} 14. Nxf6 {[%emt 0:05:12]} Qe6 {[%emt 0:00:41]} 15. Nxg4 {[%emt 0:00:05]} Qxg4 {[%emt 0:00:16]} 16. Rab1 {[%emt 0:14:24]} Nd4 {[%emt 0:01:26]} 17. Nxd4 {[%emt 0:01:44]} Bxd4 {[%emt 0:00:09]} 18. Rfc1 {[%emt 0:03:25]} Qxg3 {[%emt 0:00:27]} 19. Kf1 {[%emt 0:00:12]} Qh2 {[%emt 0:00:54]} 20. Qd1 {[%emt 0:02:58]} Rdg8 {[%emt 0:00:22]} 21. Qf3 {[%emt 0:00:29]} Kb8 {[%emt 0:00:45]} 22. Rc2 {[%emt 0:05:18]} Rh4 {[%emt 0:00:10]} 23. Re1 {[%emt 0:03:35]} Rhg4 {[%emt 0:00:15]} 24. Bh3 {[%emt 0:00:53]} Rf4 {[%emt 0:00:08]} 0-1

[Event "Slovakia Open Piestany-A 2022"]
[Site "Piestany"]
[Date "2022.07.17"]
[Round "8.20"]
[White "Domalchuk-Jonasson, Aleksandr"]
[Black "Sharma Isha"]
[Result "0-1"]
[ECO "E73"]
[WhiteElo "2244"]
[BlackElo "2236"]
[Annotator "ChessBase"]
[PlyCount "96"]
[EventDate "2022.07.12"]
[EventType "swiss"]
[EventCountry "SVK"]
[SourceTitle "playchess.com"]
[Source "ChessBase"]
[SourceQuality "1"]
[TimeControl "40/5400+30:1800+30"]

1. d4 {[%emt 0:00:56]} Nf6 {[%emt 0:01:17]} 2. c4 {[%emt 0:00:19]} g6 {[%emt 0:00:58]} 3. Nc3 {[%emt 0:00:17]} Bg7 {[%emt 0:00:07]} 4. e4 {[%emt 0:00:11]} d6 {[%emt 0:00:06]} 5. Be2 {[%emt 0:00:30]} O-O {[%emt 0:00:08]} 6. Bg5 {[%emt 0:00:25]} Na6 {[%emt 0:00:35]} 7. Qd2 {[%emt 0:04:25]} e5 {[%emt 0:00:28]} 8. d5 {[%emt 0:00:37]} Qe8 {[%emt 0:01:09]} 9. h4 {[%emt 0:19:42]} Nc5 {[%emt 0:00:45]} 10. Bf3 {[%emt 0:00:30]} Bd7 {[%emt 0:10:13]} 11. b4 {[%emt 0:08:15]} Ncxe4 {[%emt 0:22:08]} 12. Nxe4 {[%emt 0:04:26]} Nxe4 {[%emt 0:00:05]} 13. Bxe4 {[%emt 0:00:04]} f5 {[%emt 0:00:03]} 14. Bc2 {[%emt 0:00:16]} f4 {[%emt 0:00:06]} 15. Be4 {[%emt 0:27:10]} h6 {[%emt 0:08:17]} 16. Bxh6 {[%emt 0:02:17]} Bxh6 {[%emt 0:00:18]} 17. Ne2 {[%emt 0:00:10]} Kg7 {[%emt 0:08:14]} 18. f3 {[%emt 0:02:19]} Rh8 {[%emt 0:00:08]} 19. Nc3 {[%emt 0:03:16]} Bg5 {[%emt 0:14:15]} 20. g3 {[%emt 0:07:42]} Bf6 {[%emt 0:02:16]} 21. Qg2 {[%emt 0:05:26]} Qf7 {[%emt 0:00:09]} 22. O-O-O {[%emt 0:02:33]} Rag8 {[%emt 0:07:46]} 23. Kc2 {[%emt 0:02:45]} Kf8 {[%emt 0:00:50]} 24. Rdg1 {[%emt 0:00:12]} fxg3 {[%emt 0:02:52]} 25. Qxg3 {[%emt 0:00:11]} Qe7 {[%emt 0:03:55]} 26. Kb3 {[%emt 0:03:01]} Rxh4 {[%emt 0:01:26]} 27. Qg2 {[%emt 0:03:16]} Rxh1 {[%emt 0:02:11]} 28. Rxh1 {[%emt 0:00:04]} Bf5 {[%emt 0:02:13]} 29. Qc2 {[%emt 0:01:20]} Qd7 {[%emt 0:03:57]} 30. c5 {[%emt 0:00:13]} dxc5 {[%emt 0:03:16]} 31. bxc5 {[%emt 0:00:08]} Rh8 {[%emt 0:00:05]} 32. Rxh8+ {[%emt 0:01:18]} Bxh8 {[%emt 0:00:02]} 33. c6 {[%emt 0:01:40]} bxc6 {[%emt 0:00:11]} 34. dxc6 {[%emt 0:00:14]} Be6+ {[%emt 0:00:29]} 35. Kb2 {[%emt 0:00:12]} Qd4 {[%emt 0:00:25]} 36. a3 {[%emt 0:01:20]} Bf6 {[%emt 0:00:51]} 37. Qg2 {[%emt 0:00:36]} Qb6+ {[%emt 0:00:36]} 38. Kc1 {[%emt 0:00:35]} Qe3+ {[%emt 0:01:01]} 39. Qd2 {[%emt 0:00:28]} Qg1+ {[%emt 0:00:14]} 40. Kc2 {[%emt 0:00:34]} Bg5 {[%emt 0:00:46]} 41. Ne2 {[%emt 0:06:25]} Qc5+ {[%emt 0:07:21]} 42. Qc3 {[%emt 0:00:05]} Qf2 {[%emt 0:02:03]} 43. Qd3 {[%emt 0:02:03]} Kg7 {[%emt 0:02:29]} 44. Bxg6 {[%emt 0:05:20]} Qc5+ {[%emt 0:00:09]} 45. Nc3 {[%emt 0:00:22]} Qxa3 {[%emt 0:01:39]} 46. Kd1 {[%emt 0:06:43]} Qb2 {[%emt 0:03:08]} 47. Nd5 {[%emt 0:02:06]} Qa1+ {[%emt 0:00:43]} 48. Ke2 {[%emt 0:00:14]} Qa2+ {[%emt 0:00:04]} 0-1

[Event "Slovakia Open Piestany-A 2022"]
[Site "Piestany"]
[Date "2022.07.17"]
[Round "8.21"]
[White "Nadzamova, Viktoria"]
[Black "Skreko, Igor"]
[Result "1-0"]
[ECO "E73"]
[WhiteElo "2133"]
[BlackElo "2193"]
[Annotator "ChessBase"]
[PlyCount "79"]
[EventDate "2022.07.12"]
[EventType "swiss"]
[EventCountry "SVK"]
[SourceTitle "playchess.com"]
[Source "ChessBase"]
[SourceQuality "1"]
[TimeControl "40/5400+30:1800+30"]

1. d4 {[%emt 0:09:25]} Nf6 {[%emt 0:00:05]} 2. c4 {[%emt 0:00:06]} g6 {[%emt 0:00:04]} 3. Nc3 {[%emt 0:00:06]} Bg7 {[%emt 0:00:04]} 4. e4 {[%emt 0:00:08]} d6 {[%emt 0:00:05]} 5. Be2 {[%emt 0:00:28]} O-O {[%emt 0:00:21]} 6. Be3 {[%emt 0:00:12]} e5 {[%emt 0:01:54]} 7. d5 {[%emt 0:02:32]} a5 {[%emt 0:03:02]} 8. h4 {[%emt 0:01:21]} Na6 {[%emt 0:01:42]} 9. h5 {[%emt 0:03:00]} Nc5 {[%emt 0:01:06]} 10. hxg6 {[%emt 0:01:30]} fxg6 {[%emt 0:00:26]} 11. f3 {[%emt 0:01:57]} Nh5 {[%emt 0:03:07]} 12. Qd2 {[%emt 0:03:51]} Nf4 {[%emt 0:05:25]} 13. Bf1 {[%emt 0:07:24]} Bf6 {[%emt 0:09:59]} 14. O-O-O {[%emt 0:12:43]} Bd7 {[%emt 0:04:18]} 15. g3 {[%emt 0:06:16]} Nh5 {[%emt 0:00:15]} 16. Nge2 {[%emt 0:02:43]} Be7 {[%emt 0:05:48]} 17. Bg2 {[%emt 0:02:30]} Qb8 {[%emt 0:06:47]} 18. f4 {[%emt 0:12:47]} exf4 {[%emt 0:10:32]} 19. gxf4 {[%emt 0:03:23]} b5 {[%emt 0:03:57]} 20. cxb5 {[%emt 0:08:18]} Bxb5 {[%emt 0:00:23]} 21. Nxb5 {[%emt 0:01:28]} Qxb5 {[%emt 0:00:08]} 22. Nc3 {[%emt 0:00:09]} Qc4 {[%emt 0:04:29]} 23. Rxh5 {[%emt 0:03:21]} gxh5 {[%emt 0:00:13]} 24. Rg1 {[%emt 0:00:37]} Kf7 {[%emt 0:11:01]} 25. Bf1 {[%emt 0:03:20]} Qb4 {[%emt 0:00:18]} 26. Bb5 {[%emt 0:01:16]} Bf6 {[%emt 0:11:45]} 27. e5 {[%emt 0:01:55]} dxe5 {[%emt 0:01:50]} 28. fxe5 {[%emt 0:00:10]} Bxe5 {[%emt 0:00:36]} 29. Qf2+ {[%emt 0:00:37]} Bf4 {[%emt 0:03:35]} 30. Bxf4 {[%emt 0:02:41]} Nd3+ {[%emt 0:05:06]} 31. Bxd3 {[%emt 0:00:09]} Ke8 {[%emt 0:00:09]} 32. Bb5+ {[%emt 0:03:42]} Kd8 {[%emt 0:00:59]} 33. Qh4+ {[%emt 0:01:25]} Kc8 {[%emt 0:00:22]} 34. Qh3+ {[%emt 0:00:05]} Kb8 {[%emt 0:00:22]} 35. Be3 {[%emt 0:04:02]} Qe7 {[%emt 0:02:32]} 36. Re1 {[%emt 0:00:41]} Qg7 {[%emt 0:01:10]} 37. Qe6 {[%emt 0:00:56]} Qg3 {[%emt 0:01:42]} 38. Bc5 {[%emt 0:00:37]} Rd8 {[%emt 0:01:01]} 39. Qe7 {[%emt 0:00:39]} Rg8 {[%emt 0:01:01]} 40. Qe8+ {[%emt 0:00:59]} 1-0

[Event "Slovakia Open Piestany-A 2022"]
[Site "Piestany"]
[Date "2022.07.17"]
[Round "8.22"]
[White "Travnicek, Krystof Mikulas"]
[Black "Soham Datar"]
[Result "1-0"]
[ECO "B70"]
[WhiteElo "2138"]
[BlackElo "2111"]
[Annotator "TA"]
[PlyCount "56"]
[EventDate "2022.07.12"]
[EventType "swiss"]
[EventCountry "SVK"]
[SourceTitle "playchess.com"]
[Source "ChessBase"]
[SourceQuality "1"]
[TimeControl "40/5400+30:1800+30"]

{[%evp 20,56,16,21,37,22,35,25,20,36,85,37,66,65,66,59,53,63,60,61,72,72,107,107,134,139,229,219,380,374,347,360,678,656,736,433,747,692,2665]} 1. e4 {[%emt 0:00:09]} c5 {[%emt 0:00:06]} 2. Nc3 {[%emt 0:00:25]} a6 {[%emt 0:00:09]} 3. Nf3 {[%emt 0:00:34]} d6 {[%emt 0:00:07]} 4. g3 {[%emt 0:00:34]} g6 {[%emt 0:01:55]} 5. d4 {[%emt 0:00:51]} cxd4 {[%emt 0:00:12]} 6. Nxd4 {[%emt 0:00:27]} Bg7 {[%emt 0:00:20]} 7. Bg2 {[%emt 0:00:45]} Nf6 {[%emt 0:00:06]} 8. O-O {[%emt 0:01:17]} O-O {[%emt 0:00:06]} 9. h3 {[%emt 0:03:10]} Bd7 {[%emt 0:08:25]} 10. a4 {[%emt 0:12:06]} Nc6 {[%emt 0:00:30]} 11. Nde2 {[%emt 0:02:40]} Ne5 {[%emt 0:10:10] B70: Sicilian Dragon: 6 g3 and 6 Be2 (without a later Be3).} 12. Nd5 {[%emt 0:11:58]} Nxd5 {[%emt 0:09:18]} 13. exd5 {[%emt 0:00:24]} b5 {[%emt 0:01:07] White has an edge.} 14. axb5 {[%emt 0:10:33] [#]} Nc4 $146 {[%emt 0:02:46]} (14... Bxb5 $14 15. Ra3 a5) ({Predecessor:} 14... axb5 15. Rxa8 Qxa8 16. b3 Bc8 17. Nd4 b4 18. f4 Nd7 19. Nc6 Ba6 20. Re1 Qb7 21. Rxe7 {1-0 (39) Obolenskikh,D (2523)-Ergeshov,T (2088) Angarsk 2015}) 15. c3 {[%emt 0:08:41]} ({Don't play} 15. bxa6 $6 Nxb2 16. Bxb2 Bxb2 $11) ({White should play} 15. Rxa6 $16 Nxb2 16. Bxb2 Bxb2 17. Rxa8 Qxa8 18. c4) 15... axb5 {[%emt 0:00:21]} 16. Rxa8 {[%emt 0:01:10]} Qxa8 {[%emt 0:00:04]} 17. b3 $1 {[%emt 0:02:55]} Nb6 {[%emt 0:03:55]} 18. Be3 {[%emt 0:04:02]} Qb7 {[%emt 0:00:18]} 19. Re1 {[%emt 0:04:29][%cal Bf1e1,Be1a1,Ba1a6][%mdl 32]} Qc7 {[%emt 0:01:56]} 20. Qd3 {[%emt 0:10:53]} Rb8 {[%emt 0:10:46]} 21. Nd4 {[%emt 0:03:10]} Nc8 {[%emt 0:01:17]} 22. Ra1 {[%emt 0:03:40] White is much more active. The black rooks are badly placed.} e5 {[%emt 0:03:00] [#]} (22... b4 $16) 23. Nc6 $1 $18 {[%emt 0:06:24]} Bxc6 $2 {[%emt 0:00:06]} (23... Rb7 {was called for.} 24. Bg5 f6) 24. dxc6 {[%emt 0:00:07]} b4 {[%emt 0:00:15]} 25. Ra6 {[%emt 0:03:11]} e4 $2 {[%emt 0:03:47]} (25... bxc3 26. Qxc3 Bf6) 26. Qxe4 {[%emt 0:00:29] Hoping for Qe8+. White is clearly winning.} bxc3 {[%emt 0:00:24]} 27. Qe8+ {[%emt 0:00:29]} Bf8 {[%emt 0:00:06]} 28. Qd7 {[%emt 0:00:32]} ({Wrong is} 28. Bh6 $2 {[#]} Nb6 $1 29. Qe3 Bxh6 30. Qxc3 (30. Qxh6 $2 d5 $19) 30... d5 $19) 28... Ne7 {[%emt 0:00:09] Weighted Error Value: White=0.05 (flawless) /Black=0.52} 1-0

[Event "Slovakia Open Piestany-A 2022"]
[Site "Piestany"]
[Date "2022.07.17"]
[Round "8.23"]
[White "Matras, Ondrej"]
[Black "Drtina, Milan"]
[Result "*"]
[ECO "D44"]
[WhiteElo "2229"]
[BlackElo "2167"]
[Annotator "ChessBase"]
[PlyCount "32"]
[EventDate "2022.07.12"]
[EventType "swiss"]
[EventCountry "SVK"]
[SourceTitle "playchess.com"]
[Source "ChessBase"]
[SourceQuality "1"]
[TimeControl "40/5400+30:1800+30"]

1. d4 {[%emt 0:12:33]} d5 {[%emt 0:00:28]} 2. c4 {[%emt 0:00:02]} e6 {[%emt 0:00:40]} 3. Nc3 {[%emt 0:00:03]} Nf6 {[%emt 0:00:12]} 4. Nf3 {[%emt 0:00:02]} c6 {[%emt 0:00:33]} 5. Bg5 {[%emt 0:00:07]} dxc4 {[%emt 0:02:01]} 6. e4 {[%emt 0:00:02]} b5 {[%emt 0:06:42]} 7. e5 {[%emt 0:00:03]} h6 {[%emt 0:00:11]} 8. Bh4 {[%emt 0:00:01]} g5 {[%emt 0:00:10]} 9. Nxg5 {[%emt 0:00:03]} hxg5 {[%emt 0:00:13]} 10. Bxg5 {[%emt 0:00:02]} Be7 {[%emt 0:00:11]} 11. exf6 {[%emt 0:00:06]} Bxf6 {[%emt 0:00:11]} 12. Bxf6 {[%emt 0:00:56]} Qxf6 {[%emt 0:00:13]} 13. g3 {[%emt 0:00:23]} a5 {[%emt 0:05:30]} 14. Bg2 {[%emt 0:01:49]} Ra7 {[%emt 0:00:31]} 15. Ne4 {[%emt 0:04:04]} Qe7 {[%emt 0:02:32]} 16. O-O {[%emt 0:03:56]} Na6 {[%emt 0:01:19]} *

[Event "Slovakia Open Piestany-A 2022"]
[Site "Piestany"]
[Date "2022.07.17"]
[Round "8.24"]
[White "Warchol, Kamil"]
[Black "Delgerdalai, Bayarjavkhlan"]
[Result "1/2-1/2"]
[ECO "C08"]
[WhiteElo "2121"]
[BlackElo "2209"]
[Annotator "ChessBase"]
[PlyCount "91"]
[EventDate "2022.07.12"]
[EventType "swiss"]
[EventCountry "SVK"]
[SourceTitle "playchess.com"]
[Source "ChessBase"]
[SourceQuality "1"]
[TimeControl "40/5400+30:1800+30"]

1. e4 {[%emt 0:00:04]} e6 {[%emt 0:00:06]} 2. d4 {[%emt 0:00:31]} d5 {[%emt 0:00:05]} 3. Nd2 {[%emt 0:00:23]} c5 {[%emt 0:00:04]} 4. Ngf3 {[%emt 0:06:33]} Nc6 {[%emt 0:01:43]} 5. exd5 {[%emt 0:10:46]} exd5 {[%emt 0:05:23]} 6. dxc5 {[%emt 0:10:17]} Bxc5 {[%emt 0:00:06]} 7. Nb3 {[%emt 0:00:04]} Bb6 {[%emt 0:06:37]} 8. Be2 {[%emt 0:06:14]} Nf6 {[%emt 0:00:52]} 9. O-O {[%emt 0:03:09]} O-O {[%emt 0:05:29]} 10. Nbd4 {[%emt 0:14:40]} Ne4 {[%emt 0:12:50]} 11. Be3 {[%emt 0:03:34]} Re8 {[%emt 0:05:28]} 12. Rc1 {[%emt 0:07:06]} Bg4 {[%emt 0:02:57]} 13. c4 {[%emt 0:15:18]} Nxd4 {[%emt 0:22:55]} 14. Nxd4 {[%emt 0:11:43]} Bxe2 {[%emt 0:04:29]} 15. Qxe2 {[%emt 0:00:39]} Bxd4 {[%emt 0:18:04]} 16. Bxd4 {[%emt 0:00:03]} dxc4 {[%emt 0:00:36]} 17. Rfd1 {[%emt 0:01:23]} Ng3 {[%emt 0:01:05]} 18. Qxe8+ {[%emt 0:01:30]} Qxe8 {[%emt 0:00:07]} 19. hxg3 {[%emt 0:00:07]} b5 {[%emt 0:02:52]} 20. a3 {[%emt 0:02:59]} h6 {[%emt 0:01:47]} 21. Bc3 {[%emt 0:00:57]} Qc6 {[%emt 0:00:51]} 22. Ba5 {[%emt 0:01:57]} Re8 {[%emt 0:01:42]} 23. Rd2 {[%emt 0:00:43]} Qa6 {[%emt 0:02:59]} 24. Bc3 {[%emt 0:00:07]} Qb6 {[%emt 0:02:30]} 25. Rcd1 {[%emt 0:01:01]} Re6 {[%emt 0:00:43]} 26. Bd4 {[%emt 0:00:44]} Qb7 {[%emt 0:00:22]} 27. Bc3 {[%emt 0:00:24]} Re7 {[%emt 0:00:29]} 28. Bb4 {[%emt 0:00:45]} Rc7 {[%emt 0:00:15]} 29. Ba5 {[%emt 0:00:18]} Re7 {[%emt 0:00:30]} 30. Bb4 {[%emt 0:00:13]} Re5 {[%emt 0:00:45]} 31. Bc3 {[%emt 0:00:52]} Rf5 {[%emt 0:00:35]} 32. Rd7 {[%emt 0:00:46]} Qe4 {[%emt 0:00:36]} 33. Rxa7 {[%emt 0:00:26]} Qe2 {[%emt 0:00:26]} 34. Rf1 {[%emt 0:00:27]} h5 {[%emt 0:00:18]} 35. Rd7 {[%emt 0:00:19]} Qe4 {[%emt 0:00:40]} 36. Rd4 {[%emt 0:00:15]} Qe7 {[%emt 0:00:35]} 37. Rfd1 {[%emt 0:00:37]} Kh7 {[%emt 0:00:29]} 38. Rd5 {[%emt 0:00:38]} Qe6 {[%emt 0:00:25]} 39. Rxf5 {[%emt 0:00:36]} Qxf5 {[%emt 0:00:04]} 40. Rd2 {[%emt 0:00:15]} f6 {[%emt 0:00:38]} 41. Re2 {[%emt 0:30:53]} Kh6 {[%emt 0:02:40]} 42. Rd2 {[%emt 0:00:00]} Qe6 {[%emt 0:02:08]} 43. Rd8 {[%emt 0:00:00]} Kg6 {[%emt 0:01:40]} 44. Rd4 {[%emt 0:00:00]} Kf7 {[%emt 0:00:20]} 45. Rf4 {[%emt 0:00:00]} Ke8 {[%emt 0:01:34]} 46. Kh2 {[%emt 0:00:00]} 1/2-1/2

[Event "Slovakia Open Piestany-A 2022"]
[Site "Piestany"]
[Date "2022.07.17"]
[Round "8.25"]
[White "Gyerpal, Adrian"]
[Black "Sevcikova, Lucia"]
[Result "1/2-1/2"]
[ECO "D30"]
[WhiteElo "2193"]
[BlackElo "2036"]
[Annotator "ChessBase"]
[PlyCount "80"]
[EventDate "2022.07.12"]
[EventType "swiss"]
[EventCountry "SVK"]
[SourceTitle "playchess.com"]
[Source "ChessBase"]
[SourceQuality "1"]
[TimeControl "40/5400+30:1800+30"]

1. Nf3 {[%emt 0:00:03]} d5 {[%emt 0:02:56]} 2. g3 {[%emt 0:00:10]} c5 {[%emt 0:00:35]} 3. Bg2 {[%emt 0:00:09]} Nc6 {[%emt 0:00:36]} 4. d4 {[%emt 0:00:22]} e6 {[%emt 0:02:59]} 5. O-O {[%emt 0:00:17]} Nf6 {[%emt 0:01:09]} 6. c4 {[%emt 0:00:26]} Be7 {[%emt 0:06:15]} 7. cxd5 {[%emt 0:00:37]} exd5 {[%emt 0:02:40]} 8. dxc5 {[%emt 0:00:13]} Bxc5 {[%emt 0:00:04]} 9. a3 {[%emt 0:00:17]} a5 {[%emt 0:04:21]} 10. Qc2 {[%emt 0:05:01]} Be7 {[%emt 0:05:46]} 11. Nc3 {[%emt 0:01:07]} Be6 {[%emt 0:10:42]} 12. Rd1 {[%emt 0:03:04]} Qc8 {[%emt 0:04:25]} 13. Bg5 {[%emt 0:07:04]} O-O {[%emt 0:10:57]} 14. Bxf6 {[%emt 0:05:56]} Bxf6 {[%emt 0:00:05]} 15. Nxd5 {[%emt 0:00:43]} Bxd5 {[%emt 0:02:19]} 16. Rxd5 {[%emt 0:00:10]} Rd8 {[%emt 0:04:15]} 17. Rad1 {[%emt 0:11:39]} Qe6 {[%emt 0:05:27]} 18. Rxd8+ {[%emt 0:15:42]} Rxd8 {[%emt 0:00:14]} 19. Rxd8+ {[%emt 0:00:10]} Nxd8 {[%emt 0:00:16]} 20. Ne1 {[%emt 0:05:39]} Qb6 {[%emt 0:02:57]} 21. Nd3 {[%emt 0:02:55]} g6 {[%emt 0:03:47]} 22. Qc8 {[%emt 0:10:20]} Qe6 {[%emt 0:05:55]} 23. Qxe6 {[%emt 0:02:06]} fxe6 {[%emt 0:00:04]} 24. Kf1 {[%emt 0:05:14]} Kf7 {[%emt 0:03:11]} 25. Ke1 {[%emt 0:00:43]} Ke7 {[%emt 0:01:31]} 26. Kd2 {[%emt 0:00:54]} Kd6 {[%emt 0:01:50]} 27. Kc2 {[%emt 0:01:10]} b6 {[%emt 0:02:30]} 28. Kb3 {[%emt 0:02:18]} Nf7 {[%emt 0:04:00]} 29. f4 {[%emt 0:02:47]} g5 {[%emt 0:04:52]} 30. Be4 {[%emt 0:05:29]} h6 {[%emt 0:02:16]} 31. Bg6 {[%emt 0:01:27]} Nd8 {[%emt 0:00:17]} 32. Ne5 {[%emt 0:02:49]} Bxe5 {[%emt 0:02:30]} 33. fxe5+ {[%emt 0:00:31]} Kxe5 {[%emt 0:00:21]} 34. Kc4 {[%emt 0:00:30]} Kd6 {[%emt 0:00:08]} 35. Be8 {[%emt 0:04:15]} e5 {[%emt 0:02:10]} 36. b4 {[%emt 0:01:52]} axb4 {[%emt 0:00:20]} 37. axb4 {[%emt 0:00:12]} Ne6 {[%emt 0:01:33]} 38. e3 {[%emt 0:00:46]} Ng7 {[%emt 0:01:18]} 39. Bg6 {[%emt 0:00:41]} Ne6 {[%emt 0:01:18]} 40. Be4 {[%emt 0:02:05]} Nc7 {[%emt 0:00:33]} 1/2-1/2

[Event "Slovakia Open Piestany-A 2022"]
[Site "Piestany"]
[Date "2022.07.17"]
[Round "8.26"]
[White "Chlpik, Martin"]
[Black "Balint, Peter"]
[Result "1-0"]
[ECO "D00"]
[WhiteElo "2236"]
[BlackElo "2051"]
[Annotator "ChessBase"]
[PlyCount "110"]
[EventDate "2022.07.12"]
[EventType "swiss"]
[EventCountry "SVK"]
[SourceTitle "playchess.com"]
[Source "ChessBase"]
[SourceQuality "1"]
[TimeControl "40/5400+30:1800+30"]

1. d4 {[%emt 0:15:18]} Nf6 {[%emt 0:00:21]} 2. Bf4 {[%emt 0:00:04]} d5 {[%emt 0:02:30]} 3. e3 {[%emt 0:00:12]} g6 {[%emt 0:00:54]} 4. Nc3 {[%emt 0:00:05]} Bg7 {[%emt 0:01:21]} 5. h4 {[%emt 0:00:03]} h6 {[%emt 0:03:50]} 6. Be2 {[%emt 0:06:48]} a6 {[%emt 0:08:47]} 7. Nf3 {[%emt 0:00:05]} c5 {[%emt 0:02:11]} 8. dxc5 {[%emt 0:00:06]} Qa5 {[%emt 0:00:56]} 9. O-O {[%emt 0:00:06]} Qxc5 {[%emt 0:00:34]} 10. Na4 {[%emt 0:00:08]} Qa5 {[%emt 0:01:51]} 11. c4 {[%emt 0:00:27]} O-O {[%emt 0:04:14]} 12. b4 {[%emt 0:04:29]} Qd8 {[%emt 0:05:43]} 13. c5 {[%emt 0:13:22]} Nc6 {[%emt 0:01:11]} 14. Nb6 {[%emt 0:02:16]} Ra7 {[%emt 0:00:07]} 15. Nd4 {[%emt 0:02:21]} Ne4 {[%emt 0:03:55]} 16. Rc1 {[%emt 0:05:04]} e5 {[%emt 0:03:39]} 17. Nxc6 {[%emt 0:00:03]} bxc6 {[%emt 0:00:03]} 18. Nxc8 {[%emt 0:00:05]} Qxc8 {[%emt 0:00:05]} 19. Bh2 {[%emt 0:00:11]} Re8 {[%emt 0:04:24]} 20. a4 {[%emt 0:09:23]} d4 {[%emt 0:02:57]} 21. Bc4 {[%emt 0:03:15]} Nc3 {[%emt 0:00:42]} 22. Qb3 {[%emt 0:00:23]} Qg4 {[%emt 0:02:15]} 23. f4 {[%emt 0:01:53]} exf4 {[%emt 0:04:45]} 24. Rxf4 {[%emt 0:06:57]} Ne2+ {[%emt 0:00:07]} 25. Bxe2 {[%emt 0:00:04]} Qxe2 {[%emt 0:00:04]} 26. exd4 {[%emt 0:01:56]} Rd7 {[%emt 0:05:10]} 27. Rcf1 {[%emt 0:14:30]} Re6 {[%emt 0:07:53]} 28. d5 {[%emt 0:03:23]} Rxd5 {[%emt 0:03:11]} 29. Rxf7 {[%emt 0:00:12]} Rd2 {[%emt 0:00:07]} 30. Qh3 {[%emt 0:02:52]} Rd1 {[%emt 0:01:43]} 31. Qf3 {[%emt 0:01:14]} Qxf1+ {[%emt 0:14:01]} 32. Qxf1 {[%emt 0:00:09]} Ree1 {[%emt 0:08:34]} 33. g4 {[%emt 0:00:21]} Bd4+ {[%emt 0:03:43]} 34. Kg2 {[%emt 0:00:03]} Rd2+ {[%emt 0:01:06]} 35. Kh3 {[%emt 0:01:26]} Rxf1 {[%emt 0:00:54]} 36. Rxf1 {[%emt 0:00:02]} Rb2 {[%emt 0:00:25]} 37. Bd6 {[%emt 0:01:57]} Bf2 {[%emt 0:03:23]} 38. b5 {[%emt 0:01:09]} axb5 {[%emt 0:00:54]} 39. axb5 {[%emt 0:00:16]} cxb5 {[%emt 0:00:58]} 40. c6 {[%emt 0:00:54]} Bb6 {[%emt 0:00:29]} 41. Rf8+ {[%emt 0:30:41]} Kg7 {[%emt 0:30:19]} 42. Rb8 {[%emt 0:00:09]} Rb3+ {[%emt 0:00:06]} 43. Kg2 {[%emt 0:00:06]} Ba5 {[%emt 0:00:48]} 44. c7 {[%emt 0:02:32]} Rb2+ {[%emt 0:00:00]} 45. Kf3 {[%emt 0:00:00]} Rb3+ {[%emt 0:00:00]} 46. Ke2 {[%emt 0:00:20]} Rb2+ {[%emt 0:00:09]} 47. Ke3 {[%emt 0:00:33]} Bxc7 {[%emt 0:00:45]} 48. Bxc7 {[%emt 0:03:55]} Rb3+ {[%emt 0:00:30]} 49. Ke4 {[%emt 0:00:30]} Rb4+ {[%emt 0:00:00]} 50. Kd5 {[%emt 0:00:00]} Kf7 {[%emt 0:00:00]} 51. Be5 {[%emt 0:00:00]} g5 {[%emt 0:00:00]} 52. Rb7+ {[%emt 0:00:00]} Kg8 {[%emt 0:00:00]} 53. Ke6 {[%emt 0:00:00]} Rb1 {[%emt 0:00:00]} 54. Rb8+ {[%emt 0:00:00]} Kh7 {[%emt 0:00:00]} 55. Rh8+ {[%emt 0:00:00]} Kg6 {[%emt 0:00:00]} 1-0